[Event "Titled Tuesday Blitz February 28 Early 2023"]
[White "Ahmadzada, Ahmad"]
[Black "Caruana, Fabiano"]
[WhiteFideId "13413007"]
[BlackFideId "2020009"]
[WhiteElo "2388"]
[BlackElo "2818"]
[Result "1/2-1/2"]
[Round "05"]
[TimeControl "180+2"]
[Date "2023.02.28"]
[WhiteClock "0:00:06"]
[BlackClock "0:00:11"]

1. Nf3 {[%clk 0:03:00]}  Nf6 {[%clk 0:02:59]} 2. g3 {[%clk 0:03:00]}  g6 {[%clk 0:02:58]} 3. Bg2 {[%clk 0:03:00]}  Bg7 {[%clk 0:02:58]} 4. O-O {[%clk 0:03:00]}  O-O {[%clk 0:02:57]} 5. c4 {[%clk 0:02:58]}  d6 {[%clk 0:02:57]} 6. Nc3 {[%clk 0:02:56]}  c6 {[%clk 0:02:56]} 7. d4 {[%clk 0:02:50]}  Bf5 {[%clk 0:02:56]} 8. Nh4 {[%clk 0:02:48]}  Be6 {[%clk 0:02:55]} 9. b3 {[%clk 0:02:36]}  d5 {[%clk 0:02:55]} 10. cxd5 {[%clk 0:02:32]}  Nxd5 {[%clk 0:02:51]} 11. Bb2 {[%clk 0:02:31]}  a5 {[%clk 0:02:31]} 12. Nf3 {[%clk 0:02:25]}  Na6 {[%clk 0:02:31]} 13. Ng5 {[%clk 0:02:07]}  Bg4 {[%clk 0:02:26]} 14. h3 {[%clk 0:01:59]}  Bd7 {[%clk 0:02:23]} 15. e4 {[%clk 0:01:55]}  Nxc3 {[%clk 0:02:21]} 16. Bxc3 {[%clk 0:01:56]}  c5 {[%clk 0:02:11]} 17. Nf3 {[%clk 0:01:50]}  Bb5 {[%clk 0:02:06]} 18. Re1 {[%clk 0:01:50]}  Nb4 {[%clk 0:02:06]} 19. e5 {[%clk 0:01:26]}  Rc8 {[%clk 0:01:46]} 20. Qd2 {[%clk 0:00:55]}  b6 {[%clk 0:01:44]} 21. a3 {[%clk 0:00:47]}  Nd5 {[%clk 0:01:42]} 22. Bb2 {[%clk 0:00:46]}  c4 {[%clk 0:01:40]} 23. bxc4 {[%clk 0:00:46]}  Bxc4 {[%clk 0:01:41]} 24. e6 {[%clk 0:00:45]}  f6 {[%clk 0:01:37]} 25. a4 {[%clk 0:00:43]}  Rc6 {[%clk 0:01:27]} 26. Ba3 {[%clk 0:00:40]}  Qc7 {[%clk 0:01:19]} 27. Rac1 {[%clk 0:00:39]}  Rc8 {[%clk 0:01:18]} 28. Nh2 {[%clk 0:00:31]}  Qd8 {[%clk 0:01:17]} 29. Nf1 {[%clk 0:00:27]}  R6c7 {[%clk 0:01:12]} 30. Ne3 {[%clk 0:00:25]}  Nxe3 {[%clk 0:01:04]} 31. Qxe3 {[%clk 0:00:22]}  f5 {[%clk 0:00:38]} 32. d5 {[%clk 0:00:21]}  Bxd5 {[%clk 0:00:39]} 33. Rcd1 {[%clk 0:00:12]}  Rc3 {[%clk 0:00:38]} 34. Rxd5 {[%clk 0:00:13]}  Qf8 {[%clk 0:00:30]} 35. Rd3 {[%clk 0:00:13]}  Rxd3 {[%clk 0:00:31]} 36. Qxd3 {[%clk 0:00:13]}  Rc3 {[%clk 0:00:31]} 37. Qd7 {[%clk 0:00:12]}  Rxa3 {[%clk 0:00:32]} 38. Rc1 {[%clk 0:00:12]}  Rc3 {[%clk 0:00:32]} 39. Rxc3 {[%clk 0:00:10]}  Bxc3 {[%clk 0:00:33]} 40. Bc6 {[%clk 0:00:08]}  Kg7 {[%clk 0:00:30]} 41. Qd3 {[%clk 0:00:06]}  Qf6 {[%clk 0:00:29]} 42. Qd5 {[%clk 0:00:06]}  Bd4 {[%clk 0:00:24]} 43. Kg2 {[%clk 0:00:06]}  Bc5 {[%clk 0:00:19]} 44. Bb5 {[%clk 0:00:03]}  Qb2 {[%clk 0:00:18]} 45. Qf3 {[%clk 0:00:04]}  Kf6 {[%clk 0:00:18]} 46. Qe2 {[%clk 0:00:03]}  Qxe2 {[%clk 0:00:17]} 47. Bxe2 {[%clk 0:00:04]}  Kxe6 {[%clk 0:00:18]} 48. Bb5 {[%clk 0:00:05]}  Kd5 {[%clk 0:00:17]} 49. f4 {[%clk 0:00:05]}  Kd4 {[%clk 0:00:14]} 50. Kf3 {[%clk 0:00:06]}  Bd6 {[%clk 0:00:14]} 51. h4 {[%clk 0:00:06]}  e5 {[%clk 0:00:09]} 52. fxe5 {[%clk 0:00:07]}  Bxe5 {[%clk 0:00:10]} 53. Be8 {[%clk 0:00:07]}  Kc5 {[%clk 0:00:09]} 54. Bb5 {[%clk 0:00:06]}  Kb4 {[%clk 0:00:09]} 55. Be8 {[%clk 0:00:07]}  Bd6 {[%clk 0:00:09]} 56. Bb5 {[%clk 0:00:07]}  Kc3 {[%clk 0:00:08]} 57. Be8 {[%clk 0:00:07]}  Kd4 {[%clk 0:00:09]} 58. Bb5 {[%clk 0:00:07]}  Ke5 {[%clk 0:00:09]} 59. Be8 {[%clk 0:00:08]}  Kf6 {[%clk 0:00:10]} 60. Bb5 {[%clk 0:00:08]}  Bb4 {[%clk 0:00:11]} 61. Bc6 {[%clk 0:00:08]}  Be1 {[%clk 0:00:11]} 62. Bb5 {[%clk 0:00:07]}  Ke5 {[%clk 0:00:08]} 63. Bd7 {[%clk 0:00:07]}  f4 {[%clk 0:00:06]} 64. gxf4+ {[%clk 0:00:07]}  Kd6 {[%clk 0:00:06]} 65. Bb5 {[%clk 0:00:03]}  Bxh4 {[%clk 0:00:07]} 66. Kg4 {[%clk 0:00:04]}  Bf6 {[%clk 0:00:07]} 67. Bc4 {[%clk 0:00:03]}  Kc5 {[%clk 0:00:07]} 68. Bb5 {[%clk 0:00:02]}  Kd4 {[%clk 0:00:07]} 69. Kf3 {[%clk 0:00:03]}  Be7 {[%clk 0:00:07]} 70. Be8 {[%clk 0:00:03]}  Bd6 {[%clk 0:00:07]} 71. Bb5 {[%clk 0:00:04]}  Kd5 {[%clk 0:00:07]} 72. Be8 {[%clk 0:00:05]}  Ke6 {[%clk 0:00:07]} 73. Bb5 {[%clk 0:00:05]}  Kf6 {[%clk 0:00:08]} 74. Bd7 {[%clk 0:00:06]}  Ke7 {[%clk 0:00:07]} 75. Bb5 {[%clk 0:00:06]}  Kf6 {[%clk 0:00:08]} 76. Kg4 {[%clk 0:00:06]}  Bb4 {[%clk 0:00:08]} 77. Bc6 {[%clk 0:00:06]}  Bd2 {[%clk 0:00:08]} 78. Kf3 {[%clk 0:00:06]}  h5 {[%clk 0:00:08]} 79. Bb5 {[%clk 0:00:05]}  Bb4 {[%clk 0:00:06]} 80. Bc6 {[%clk 0:00:05]}  Bd6 {[%clk 0:00:07]} 81. Bb5 {[%clk 0:00:06]}  Kg7 {[%clk 0:00:07]} 82. Be8 {[%clk 0:00:05]}  Kh6 {[%clk 0:00:08]} 83. Bb5 {[%clk 0:00:05]}  Kg7 {[%clk 0:00:08]} 84. Be8 {[%clk 0:00:05]}  Kf6 {[%clk 0:00:09]} 85. Bb5 {[%clk 0:00:05]}  Ke7 {[%clk 0:00:10]} 86. Bd3 {[%clk 0:00:05]}  Kf7 {[%clk 0:00:10]} 87. Bc4+ {[%clk 0:00:05]}  Kf6 {[%clk 0:00:11]} 88. Bb5 {[%clk 0:00:06]} 1/2-1/2


[Site "https://www.chess.com"]

[Event "Titled Tuesday Blitz February 28 Early 2023"]
[White "Talibov, Shiroghlan"]
[Black "Makarian, Rudik"]
[WhiteFideId "13429078"]
[BlackFideId "44105681"]
[WhiteElo "2218"]
[BlackElo "2419"]
[Result "1-0"]
[Round "05"]
[TimeControl "180+2"]
[Date "2023.02.28"]
[WhiteClock "0:00:06"]
[BlackClock "0:00:01"]

1. e4 {[%clk 0:03:00]}  c5 {[%clk 0:02:59]} 2. Nf3 {[%clk 0:02:59]}  Nc6 {[%clk 0:02:59]} 3. d4 {[%clk 0:02:59]}  cxd4 {[%clk 0:03:00]} 4. Nxd4 {[%clk 0:02:59]}  e6 {[%clk 0:03:00]} 5. Nc3 {[%clk 0:02:57]}  a6 {[%clk 0:03:01]} 6. f4 {[%clk 0:02:55]}  Nxd4 {[%clk 0:02:55]} 7. Qxd4 {[%clk 0:02:54]}  b5 {[%clk 0:02:56]} 8. Be3 {[%clk 0:02:42]}  Bb7 {[%clk 0:02:55]} 9. a3 {[%clk 0:02:38]}  Rc8 {[%clk 0:02:37]} 10. Be2 {[%clk 0:02:37]}  Qc7 {[%clk 0:02:35]} 11. Bf3 {[%clk 0:02:24]}  f6 {[%clk 0:02:00]} 12. Qd2 {[%clk 0:02:15]}  Bc5 {[%clk 0:01:57]} 13. Bxc5 {[%clk 0:02:02]}  Qxc5 {[%clk 0:01:58]} 14. O-O-O {[%clk 0:02:03]}  Bc6 {[%clk 0:01:27]} 15. e5 {[%clk 0:01:55]}  f5 {[%clk 0:01:27]} 16. Bxc6 {[%clk 0:01:36]}  Qxc6 {[%clk 0:01:28]} 17. Qd6 {[%clk 0:01:19]}  Ne7 {[%clk 0:01:23]} 18. Qxc6 {[%clk 0:01:17]}  Nxc6 {[%clk 0:01:13]} 19. Rd6 {[%clk 0:01:15]}  Ke7 {[%clk 0:01:12]} 20. Rhd1 {[%clk 0:01:14]}  Rc7 {[%clk 0:01:13]} 21. Ne2 {[%clk 0:01:13]}  g5 {[%clk 0:01:09]} 22. g3 {[%clk 0:01:09]}  gxf4 {[%clk 0:01:09]} 23. gxf4 {[%clk 0:01:08]}  Rg8 {[%clk 0:01:09]} 24. Rg1 {[%clk 0:00:57]}  Rxg1+ {[%clk 0:01:02]} 25. Nxg1 {[%clk 0:00:58]}  Rc8 {[%clk 0:01:02]} 26. Rd3 {[%clk 0:00:50]}  Rg8 {[%clk 0:00:52]} 27. Rg3 {[%clk 0:00:49]}  Rg4 {[%clk 0:00:52]} 28. Nh3 {[%clk 0:00:26]}  h5 {[%clk 0:00:47]} 29. Kd2 {[%clk 0:00:24]}  h4 {[%clk 0:00:34]} 30. Rxg4 {[%clk 0:00:22]}  fxg4 {[%clk 0:00:35]} 31. Nf2 {[%clk 0:00:22]}  g3 {[%clk 0:00:34]} 32. hxg3 {[%clk 0:00:23]}  hxg3 {[%clk 0:00:35]} 33. Nh3 {[%clk 0:00:20]}  d6 {[%clk 0:00:26]} 34. exd6+ {[%clk 0:00:18]}  Kxd6 {[%clk 0:00:27]} 35. Ke3 {[%clk 0:00:19]}  e5 {[%clk 0:00:22]} 36. Kf3 {[%clk 0:00:17]}  Nd4+ {[%clk 0:00:21]} 37. Kxg3 {[%clk 0:00:16]}  Nxc2 {[%clk 0:00:12]} 38. Kf3 {[%clk 0:00:16]}  Kd5 {[%clk 0:00:09]} 39. f5 {[%clk 0:00:14]}  e4+ {[%clk 0:00:05]} 40. Kg4 {[%clk 0:00:15]}  e3 {[%clk 0:00:04]} 41. f6 {[%clk 0:00:12]}  Ke6 {[%clk 0:00:04]} 42. f7 {[%clk 0:00:09]}  Kxf7 {[%clk 0:00:04]} 43. Kf3 {[%clk 0:00:08]}  Ke6 {[%clk 0:00:03]} 44. Ke2 {[%clk 0:00:08]}  Kf5 {[%clk 0:00:03]} 45. Kd3 {[%clk 0:00:08]}  Kg4 {[%clk 0:00:01]} 46. Kxc2 {[%clk 0:00:06]} 1-0


[Site "https://www.chess.com"]

[Event "Titled Tuesday Blitz February 28 Early 2023"]
[White "So, Wesley"]
[Black "Postma, Dinant"]
[WhiteFideId "5202213"]
[BlackFideId "1018612"]
[WhiteElo "2739"]
[BlackElo "2592"]
[Result "1-0"]
[Round "05"]
[TimeControl "180+2"]
[Date "2023.02.28"]
[WhiteClock "0:00:39"]
[BlackClock "0:00:01"]

1. d4 {[%clk 0:03:00]}  Nf6 {[%clk 0:02:58]} 2. c4 {[%clk 0:03:01]}  g6 {[%clk 0:02:58]} 3. f3 {[%clk 0:02:59]}  Bg7 {[%clk 0:02:53]} 4. e4 {[%clk 0:02:59]}  d6 {[%clk 0:02:54]} 5. Ne2 {[%clk 0:02:58]}  O-O {[%clk 0:02:53]} 6. Nbc3 {[%clk 0:02:58]}  c5 {[%clk 0:02:52]} 7. d5 {[%clk 0:02:56]}  a6 {[%clk 0:02:48]} 8. a4 {[%clk 0:02:53]}  e6 {[%clk 0:02:46]} 9. Ng3 {[%clk 0:02:53]}  exd5 {[%clk 0:02:46]} 10. cxd5 {[%clk 0:02:54]}  Nbd7 {[%clk 0:02:39]} 11. Be2 {[%clk 0:02:53]}  Qc7 {[%clk 0:02:13]} 12. O-O {[%clk 0:02:48]}  h5 {[%clk 0:02:06]} 13. Bg5 {[%clk 0:02:39]}  Nh7 {[%clk 0:02:05]} 14. Be3 {[%clk 0:02:38]}  h4 {[%clk 0:02:02]} 15. Nh1 {[%clk 0:02:37]}  Ne5 {[%clk 0:02:00]} 16. f4 {[%clk 0:02:34]}  Bh6 {[%clk 0:01:41]} 17. Qd2 {[%clk 0:02:14]}  Ng4 {[%clk 0:01:40]} 18. Bxg4 {[%clk 0:02:14]}  Bxg4 {[%clk 0:01:41]} 19. f5 {[%clk 0:02:12]}  Bg7 {[%clk 0:01:25]} 20. Rf4 {[%clk 0:01:36]}  Bh5 {[%clk 0:01:11]} 21. Rxh4 {[%clk 0:01:33]}  Rae8 {[%clk 0:00:56]} 22. Ng3 {[%clk 0:01:30]}  Bf6 {[%clk 0:00:50]} 23. Rf4 {[%clk 0:01:14]}  Bg5 {[%clk 0:00:20]} 24. Rf2 {[%clk 0:01:07]}  Bxe3 {[%clk 0:00:17]} 25. Qxe3 {[%clk 0:01:08]}  Nf6 {[%clk 0:00:15]} 26. h3 {[%clk 0:01:04]}  Qe7 {[%clk 0:00:13]} 27. Raf1 {[%clk 0:01:04]}  Kg7 {[%clk 0:00:12]} 28. fxg6 {[%clk 0:00:48]}  fxg6 {[%clk 0:00:13]} 29. Qg5 {[%clk 0:00:48]}  Qe5 {[%clk 0:00:03]} 30. Nxh5+ {[%clk 0:00:45]}  Nxh5 {[%clk 0:00:02]} 31. Qxe5+ {[%clk 0:00:46]}  dxe5 {[%clk 0:00:02]} 32. a5 {[%clk 0:00:41]}  Rxf2 {[%clk 0:00:01]} 33. Rxf2 {[%clk 0:00:42]}  Nf4 {[%clk 0:00:02]} 34. Na4 {[%clk 0:00:40]}  c4 {[%clk 0:00:01]} 35. Nb6 {[%clk 0:00:39]} 1-0


[Site "https://www.chess.com"]

[Event "Titled Tuesday Blitz February 28 Early 2023"]
[White "Mirzoev, Azer"]
[Black "Andreikin, Dmitry"]
[WhiteFideId "13400304"]
[BlackFideId "4158814"]
[WhiteElo "2525"]
[BlackElo "2736"]
[Result "0-1"]
[Round "05"]
[TimeControl "180+2"]
[Date "2023.02.28"]
[WhiteClock "0:00:30"]
[BlackClock "0:00:07"]

1. d4 {[%clk 0:03:00]}  Nf6 {[%clk 0:02:56]} 2. Nf3 {[%clk 0:02:58]}  e6 {[%clk 0:02:53]} 3. c4 {[%clk 0:02:58]}  b6 {[%clk 0:02:48]} 4. Nc3 {[%clk 0:02:58]}  Bb7 {[%clk 0:02:49]} 5. Bg5 {[%clk 0:02:57]}  h6 {[%clk 0:02:48]} 6. Bh4 {[%clk 0:02:56]}  g5 {[%clk 0:02:48]} 7. Bg3 {[%clk 0:02:57]}  Nh5 {[%clk 0:02:49]} 8. e3 {[%clk 0:02:57]}  Nxg3 {[%clk 0:02:48]} 9. hxg3 {[%clk 0:02:58]}  Bg7 {[%clk 0:02:48]} 10. Bd3 {[%clk 0:02:57]}  d6 {[%clk 0:02:41]} 11. Be4 {[%clk 0:02:56]}  c6 {[%clk 0:02:37]} 12. Qa4 {[%clk 0:02:55]}  a6 {[%clk 0:02:31]} 13. Qb3 {[%clk 0:02:54]}  Nd7 {[%clk 0:02:27]} 14. O-O-O {[%clk 0:02:43]}  b5 {[%clk 0:02:22]} 15. cxb5 {[%clk 0:02:31]}  axb5 {[%clk 0:01:52]} 16. a3 {[%clk 0:02:24]}  Qb6 {[%clk 0:01:38]} 17. Kb1 {[%clk 0:02:21]}  Ke7 {[%clk 0:01:22]} 18. Nd2 {[%clk 0:02:11]}  d5 {[%clk 0:01:11]} 19. Bc2 {[%clk 0:02:02]}  c5 {[%clk 0:01:03]} 20. Nxb5 {[%clk 0:01:42]}  Ba6 {[%clk 0:00:55]} 21. a4 {[%clk 0:01:40]}  Rhb8 {[%clk 0:00:51]} 22. Nf3 {[%clk 0:01:25]}  Bxb5 {[%clk 0:00:34]} 23. axb5 {[%clk 0:01:22]}  Qa5 {[%clk 0:00:32]} 24. Kc1 {[%clk 0:01:10]}  Rxb5 {[%clk 0:00:29]} 25. Qc3 {[%clk 0:01:08]}  Qa1+ {[%clk 0:00:23]} 26. Kd2 {[%clk 0:01:08]}  Qxb2 {[%clk 0:00:22]} 27. Qxb2 {[%clk 0:01:08]}  Rxb2 {[%clk 0:00:23]} 28. Rb1 {[%clk 0:01:08]}  Raa2 {[%clk 0:00:23]} 29. Rxb2 {[%clk 0:01:08]}  Rxb2 {[%clk 0:00:24]} 30. dxc5 {[%clk 0:01:04]}  Nxc5 {[%clk 0:00:23]} 31. Ne1 {[%clk 0:00:55]}  Ne4+ {[%clk 0:00:20]} 32. Kc1 {[%clk 0:00:53]}  Nxf2 {[%clk 0:00:17]} 33. Rf1 {[%clk 0:00:48]}  Ng4 {[%clk 0:00:17]} 34. e4 {[%clk 0:00:48]}  Ne3 {[%clk 0:00:15]} 35. Rf3 {[%clk 0:00:47]}  Nxc2 {[%clk 0:00:13]} 36. Nxc2 {[%clk 0:00:46]}  dxe4 {[%clk 0:00:13]} 37. Ra3 {[%clk 0:00:46]}  Rb7 {[%clk 0:00:13]} 38. Kd2 {[%clk 0:00:45]}  f5 {[%clk 0:00:12]} 39. g4 {[%clk 0:00:45]}  Be5 {[%clk 0:00:10]} 40. gxf5 {[%clk 0:00:39]}  Bf4+ {[%clk 0:00:10]} 41. Ke2 {[%clk 0:00:37]}  Rb2 {[%clk 0:00:09]} 42. Kd1 {[%clk 0:00:33]}  exf5 {[%clk 0:00:10]} 43. Ra5 {[%clk 0:00:33]}  Kf6 {[%clk 0:00:08]} 44. Ra6+ {[%clk 0:00:33]}  Kg7 {[%clk 0:00:09]} 45. Ra7+ {[%clk 0:00:33]}  Kg6 {[%clk 0:00:09]} 46. Rd7 {[%clk 0:00:30]}  e3 {[%clk 0:00:07]} 0-1


[Site "https://www.chess.com"]

[Event "Titled Tuesday Blitz February 28 Early 2023"]
[White "Barrientos, Sergio E"]
[Black "Firouzja, Alireza"]
[WhiteFideId "4401824"]
[BlackFideId "12573981"]
[WhiteElo "2408"]
[BlackElo "2904"]
[Result "0-1"]
[Round "05"]
[TimeControl "180+2"]
[Date "2023.02.28"]
[WhiteClock "0:01:38"]
[BlackClock "0:02:36"]

1. d4 {[%clk 0:03:00]}  Nf6 {[%clk 0:02:59]} 2. c4 {[%clk 0:03:00]}  g6 {[%clk 0:03:00]} 3. Nc3 {[%clk 0:03:00]}  Bg7 {[%clk 0:03:00]} 4. e4 {[%clk 0:03:00]}  d6 {[%clk 0:03:01]} 5. h3 {[%clk 0:03:00]}  O-O {[%clk 0:03:01]} 6. Nf3 {[%clk 0:03:00]}  e5 {[%clk 0:03:01]} 7. d5 {[%clk 0:03:00]}  a5 {[%clk 0:03:01]} 8. Be3 {[%clk 0:03:00]}  Na6 {[%clk 0:03:01]} 9. Nd2 {[%clk 0:03:00]}  Nd7 {[%clk 0:03:01]} 10. g4 {[%clk 0:02:59]}  Ndc5 {[%clk 0:03:01]} 11. a3 {[%clk 0:02:53]}  Bd7 {[%clk 0:03:00]} 12. Be2 {[%clk 0:02:47]}  Bf6 {[%clk 0:02:48]} 13. Qc2 {[%clk 0:02:30]}  Bg5 {[%clk 0:02:48]} 14. Nf1 {[%clk 0:02:13]}  a4 {[%clk 0:02:45]} 15. O-O-O {[%clk 0:02:03]}  Nb3+ {[%clk 0:02:42]} 16. Kb1 {[%clk 0:02:03]}  Bxe3 {[%clk 0:02:42]} 17. Nxe3 {[%clk 0:02:03]}  Nd4 {[%clk 0:02:40]} 18. Qd2 {[%clk 0:01:59]}  Nc5 {[%clk 0:02:41]} 19. h4 {[%clk 0:01:53]}  Qf6 {[%clk 0:02:38]} 20. Rdf1 {[%clk 0:01:44]}  Qf4 {[%clk 0:02:36]} 21. f3 {[%clk 0:01:38]}  Ndb3 {[%clk 0:02:36]} 0-1


[Site "https://www.chess.com"]

[Event "Titled Tuesday Blitz February 28 Early 2023"]
[White "Duda, Jan-Krzysztof"]
[Black "Csonka, Balazs"]
[WhiteFideId "1170546"]
[BlackFideId "742910"]
[WhiteElo "2790"]
[BlackElo "2404"]
[Result "1-0"]
[Round "05"]
[TimeControl "180+2"]
[Date "2023.02.28"]
[WhiteClock "0:00:19"]
[BlackClock "0:00:03"]

1. c3 {[%clk 0:03:00]}  Nf6 {[%clk 0:02:56]} 2. d4 {[%clk 0:03:01]}  d5 {[%clk 0:02:50]} 3. Bf4 {[%clk 0:02:59]}  e6 {[%clk 0:02:47]} 4. e3 {[%clk 0:02:59]}  Bd6 {[%clk 0:02:45]} 5. Bd3 {[%clk 0:02:59]}  O-O {[%clk 0:02:41]} 6. Bxd6 {[%clk 0:02:58]}  Qxd6 {[%clk 0:02:38]} 7. f4 {[%clk 0:02:59]}  c5 {[%clk 0:02:23]} 8. Nf3 {[%clk 0:02:57]}  cxd4 {[%clk 0:02:23]} 9. cxd4 {[%clk 0:02:57]}  Nc6 {[%clk 0:02:23]} 10. a3 {[%clk 0:02:56]}  Ne7 {[%clk 0:02:18]} 11. Nc3 {[%clk 0:02:51]}  Bd7 {[%clk 0:02:16]} 12. Ne5 {[%clk 0:02:49]}  Rfc8 {[%clk 0:02:11]} 13. g4 {[%clk 0:02:46]}  Bc6 {[%clk 0:01:42]} 14. Qf3 {[%clk 0:02:44]}  Be8 {[%clk 0:01:04]} 15. g5 {[%clk 0:02:39]}  Nd7 {[%clk 0:01:02]} 16. h4 {[%clk 0:02:37]}  Qb6 {[%clk 0:00:47]} 17. Rh2 {[%clk 0:02:33]}  Qa5 {[%clk 0:00:44]} 18. Rc2 {[%clk 0:02:24]}  Nxe5 {[%clk 0:00:28]} 19. fxe5 {[%clk 0:02:25]}  Rc7 {[%clk 0:00:29]} 20. h5 {[%clk 0:02:11]}  Rac8 {[%clk 0:00:25]} 21. b4 {[%clk 0:02:10]}  Qb6 {[%clk 0:00:24]} 22. Rac1 {[%clk 0:02:11]}  a5 {[%clk 0:00:18]} 23. b5 {[%clk 0:02:07]}  a4 {[%clk 0:00:18]} 24. h6 {[%clk 0:01:50]}  Qa5 {[%clk 0:00:18]} 25. Kd2 {[%clk 0:01:48]}  Ng6 {[%clk 0:00:10]} 26. hxg7 {[%clk 0:01:43]}  Kxg7 {[%clk 0:00:11]} 27. b6 {[%clk 0:01:30]}  Qxb6 {[%clk 0:00:09]} 28. Qf6+ {[%clk 0:01:20]}  Kg8 {[%clk 0:00:09]} 29. Rf1 {[%clk 0:01:18]}  Rxc3 {[%clk 0:00:03]} 30. Rxc3 {[%clk 0:01:15]}  Qb2+ {[%clk 0:00:03]} 31. Rc2 {[%clk 0:01:15]}  Rxc2+ {[%clk 0:00:03]} 32. Bxc2 {[%clk 0:01:16]}  Qxa3 {[%clk 0:00:04]} 33. Qd8 {[%clk 0:01:01]}  Qb4+ {[%clk 0:00:04]} 34. Ke2 {[%clk 0:01:01]}  Qb5+ {[%clk 0:00:04]} 35. Kf2 {[%clk 0:00:52]}  Qd7 {[%clk 0:00:05]} 36. Qb8 {[%clk 0:00:35]}  Kg7 {[%clk 0:00:03]} 37. Kg3 {[%clk 0:00:32]}  Qc6 {[%clk 0:00:04]} 38. Bxg6 {[%clk 0:00:28]}  hxg6 {[%clk 0:00:05]} 39. Qd8 {[%clk 0:00:28]}  Qc3 {[%clk 0:00:04]} 40. Kf3 {[%clk 0:00:19]}  Qc6 {[%clk 0:00:03]} 41. Rh1 {[%clk 0:00:19]} 1-0


[Site "https://www.chess.com"]

[Event "Titled Tuesday Blitz February 28 Early 2023"]
[White "Starozhilov, Leonid"]
[Black "Sarana, Alexey"]
[WhiteFideId "14106752"]
[BlackFideId "24133795"]
[WhiteElo "2414"]
[BlackElo "2717"]
[Result "0-1"]
[Round "05"]
[TimeControl "180+2"]
[Date "2023.02.28"]
[WhiteClock "0:00:02"]
[BlackClock "0:00:20"]

1. e4 {[%clk 0:03:00]}  c5 {[%clk 0:03:00]} 2. Nf3 {[%clk 0:03:00]}  d6 {[%clk 0:03:01]} 3. Bb5+ {[%clk 0:03:00]}  Bd7 {[%clk 0:03:00]} 4. c4 {[%clk 0:02:59]}  Nc6 {[%clk 0:02:59]} 5. Nc3 {[%clk 0:02:59]}  e5 {[%clk 0:02:59]} 6. a3 {[%clk 0:02:58]}  Nge7 {[%clk 0:02:58]} 7. O-O {[%clk 0:02:54]}  Ng6 {[%clk 0:02:57]} 8. b4 {[%clk 0:02:35]}  Be7 {[%clk 0:02:57]} 9. bxc5 {[%clk 0:02:35]}  dxc5 {[%clk 0:02:57]} 10. Nd5 {[%clk 0:02:25]}  O-O {[%clk 0:02:57]} 11. Ne3 {[%clk 0:01:38]}  Nf4 {[%clk 0:02:47]} 12. Bb2 {[%clk 0:01:35]}  Bd6 {[%clk 0:02:28]} 13. g3 {[%clk 0:01:17]}  Ne6 {[%clk 0:02:16]} 14. d3 {[%clk 0:01:08]}  Ned4 {[%clk 0:01:58]} 15. Nxd4 {[%clk 0:01:03]}  cxd4 {[%clk 0:01:59]} 16. Nf5 {[%clk 0:00:55]}  Bc5 {[%clk 0:01:40]} 17. Bc1 {[%clk 0:00:38]}  g6 {[%clk 0:01:35]} 18. Nh4 {[%clk 0:00:30]}  Kg7 {[%clk 0:01:28]} 19. f4 {[%clk 0:00:18]}  exf4 {[%clk 0:01:20]} 20. Bxf4 {[%clk 0:00:19]}  f6 {[%clk 0:01:15]} 21. Nf3 {[%clk 0:00:13]}  g5 {[%clk 0:01:02]} 22. Bd2 {[%clk 0:00:13]}  Bg4 {[%clk 0:01:02]} 23. Qb3 {[%clk 0:00:11]}  Qc7 {[%clk 0:00:59]} 24. Bxc6 {[%clk 0:00:09]}  bxc6 {[%clk 0:00:52]} 25. Bb4 {[%clk 0:00:09]}  Rfb8 {[%clk 0:00:47]} 26. Qa4 {[%clk 0:00:08]}  Qd6 {[%clk 0:00:37]} 27. Rab1 {[%clk 0:00:07]}  h6 {[%clk 0:00:31]} 28. Kg2 {[%clk 0:00:07]}  Rb6 {[%clk 0:00:27]} 29. h3 {[%clk 0:00:07]}  Bd7 {[%clk 0:00:20]} 30. Bxc5 {[%clk 0:00:06]}  Qxc5 {[%clk 0:00:21]} 31. Qc2 {[%clk 0:00:05]}  Rab8 {[%clk 0:00:21]} 32. Rfc1 {[%clk 0:00:05]}  Qxa3 {[%clk 0:00:19]} 33. Rxb6 {[%clk 0:00:03]}  Rxb6 {[%clk 0:00:20]} 34. Qd1 {[%clk 0:00:04]}  Rb2+ {[%clk 0:00:19]} 35. Rc2 {[%clk 0:00:04]}  c5 {[%clk 0:00:20]} 36. Rxb2 {[%clk 0:00:03]}  Qxb2+ {[%clk 0:00:21]} 37. Nd2 {[%clk 0:00:02]}  a5 {[%clk 0:00:20]} 38. g4 {[%clk 0:00:02]}  a4 {[%clk 0:00:20]} 39. Kg3 {[%clk 0:00:02]}  a3 {[%clk 0:00:21]} 40. e5 {[%clk 0:00:02]}  Qb8 {[%clk 0:00:20]} 0-1


[Site "https://www.chess.com"]

[Event "Titled Tuesday Blitz February 28 Early 2023"]
[White "Kucuksari, Kaan"]
[Black "Daneshvar, Bardiya"]
[WhiteFideId "6380166"]
[BlackFideId "12576468"]
[WhiteElo "2364"]
[BlackElo "2482"]
[Result "1-0"]
[Round "05"]
[TimeControl "180+2"]
[Date "2023.02.28"]
[WhiteClock "0:00:16"]
[BlackClock "0:00:10"]

1. d4 {[%clk 0:03:00]}  b6 {[%clk 0:03:00]} 2. e4 {[%clk 0:03:00]}  Bb7 {[%clk 0:03:01]} 3. Bd3 {[%clk 0:02:58]}  Nf6 {[%clk 0:03:00]} 4. Nc3 {[%clk 0:02:54]}  e6 {[%clk 0:02:59]} 5. a3 {[%clk 0:02:46]}  d5 {[%clk 0:02:55]} 6. e5 {[%clk 0:02:46]}  Nfd7 {[%clk 0:02:55]} 7. Nce2 {[%clk 0:02:30]}  Ba6 {[%clk 0:02:53]} 8. Nf3 {[%clk 0:02:26]}  c5 {[%clk 0:02:50]} 9. Bxa6 {[%clk 0:02:23]}  Nxa6 {[%clk 0:02:51]} 10. c3 {[%clk 0:02:24]}  Be7 {[%clk 0:02:50]} 11. Ng3 {[%clk 0:02:19]}  Nc7 {[%clk 0:02:43]} 12. h4 {[%clk 0:02:15]}  h6 {[%clk 0:02:39]} 13. h5 {[%clk 0:02:02]}  Qc8 {[%clk 0:02:37]} 14. O-O {[%clk 0:01:59]}  Qa6 {[%clk 0:02:34]} 15. b4 {[%clk 0:01:52]}  cxb4 {[%clk 0:02:27]} 16. cxb4 {[%clk 0:01:50]}  Bxb4 {[%clk 0:02:26]} 17. Bxh6 {[%clk 0:01:46]}  Rxh6 {[%clk 0:02:15]} 18. axb4 {[%clk 0:01:46]}  Qb7 {[%clk 0:02:15]} 19. Ng5 {[%clk 0:01:36]}  f6 {[%clk 0:02:08]} 20. exf6 {[%clk 0:01:27]}  gxf6 {[%clk 0:02:09]} 21. Nxe6 {[%clk 0:01:25]}  Nxe6 {[%clk 0:02:06]} 22. Nf5 {[%clk 0:01:25]}  Qb8 {[%clk 0:01:53]} 23. Re1 {[%clk 0:01:05]}  Qf4 {[%clk 0:01:47]} 24. Rxe6+ {[%clk 0:01:04]}  Kf7 {[%clk 0:01:47]} 25. Nxh6+ {[%clk 0:00:34]}  Kxe6 {[%clk 0:01:46]} 26. Qe2+ {[%clk 0:00:34]}  Kd6 {[%clk 0:01:38]} 27. Nf7+ {[%clk 0:00:34]}  Kc7 {[%clk 0:01:03]} 28. h6 {[%clk 0:00:32]}  Nf8 {[%clk 0:00:20]} 29. Qe7+ {[%clk 0:00:28]}  Kc6 {[%clk 0:00:20]} 30. Nd8+ {[%clk 0:00:17]}  Kb5 {[%clk 0:00:16]} 31. Qxf8 {[%clk 0:00:17]}  Qxd4 {[%clk 0:00:15]} 32. Rf1 {[%clk 0:00:16]}  Qd3 {[%clk 0:00:10]} 33. Qd6 {[%clk 0:00:16]} 1-0


[Site "https://www.chess.com"]